Cogmind - Beta 13 @@@ ROGUE MODE // 2024.05.03 @ 14:50:04 Player: ElectroBlueGuy Result: Destroyed by H-61 Shepherd with Heavy Assault Cannon Performance ------------- Evolutions (2) 1000 Regions Visited (5) 1000 Robots Destroyed (25) 125 Value Destroyed (636) 636 Prototype IDs (2) 40 Alien Tech Used (0) 0 Bonus (300) 300 TOTAL SCORE: 3101 Bonus ------- Aligned with FarCom 300 Cogmind --------- Core Integrity 0/550 Matter 228/300 Energy 62/100 System Corruption 0% Temperature Warm (146) Movement Core (50) Location -8/Materials Parts ------- > --- POWER (2) -------- (None) > --- PROPULSION (4) --- (None) > --- UTILITY (3) ------ Transport Network Coupler Reaction Control System > --- WEAPON (2) ------- (None) > --- INVENTORY (5) ---- Light EM Pulse Cannon Peak State ------------ > --- POWER ------------ Ion Engine Backup Power III > --- PROPULSION ------- Aluminum Leg Backup Propulsion III > --- UTILITY ---------- Transport Network Coupler Reflective Plating Supersonic Drone Bay > --- WEAPON ----------- Advanced Beam Rifle Bore Cannon > --- INVENTORY -------- Heavy Particle Cannon Light Assault Rifle Grenade Launcher [Rating: 29] Favorites ----------- Power Ion Engine Engine Ion Engine Propulsion Aluminum Leg Leg Aluminum Leg Hover Unit Backup Propulsion III Flight Unit Surge Thruster Utility Transport Network Coupler Device Supersonic Drone Bay Storage Small Storage Unit Processor Transport Network Coupler Protection Reflective Plating Weapon Bore Cannon Energy Gun Small Laser Energy Cannon Heavy Particle Cannon Ballistic Gun Light Assault Rifle Ballistic Cannon Bore Cannon Launcher Grenade Launcher Build | -11 -10 -10 -10 -9 -8 ------- Run | Yrd Mat Min Exi Min Mat Slots Evolved 4 | . . . . . 4 Power 1 | . . . . . 1 Propulsion 2 | . . . . . 2 Utility 1 | . . . . . 1 Weapon . | . . . . . . Parts Attached 27 | 6 4 5 . 4 8 Power 3 | 1 . 1 . 1 . Engine 3 | 1 . 1 . 1 . Core . | . . . . . . Reactor . | . . . . . . Propulsion 6 | 2 . 1 . 2 1 Treads . | . . . . . . Leg 5 | 2 . 1 . 2 . Wheel . | . . . . . . Hover . | . . . . . . Flight 1 | . . . . . 1 Utility 7 | 1 2 . . 1 3 Device 2 | . . . . 1 1 Storage 2 | 1 1 . . . . Processor 1 | . 1 . . . . Hackware . | . . . . . . Protection 2 | . . . . . 2 Artifact . | . . . . . . Weapon 11 | 2 2 3 . . 4 Energy Gun 2 | 1 . . . . 1 Energy Cannon 3 | . 1 1 . . 1 Ballistic Gun 3 | 1 . 1 . . 1 Ballistic Cannon 1 | . . 1 . . . Launcher 2 | . 1 . . . 1 Special Weapon . | . . . . . . Impact Weapon . | . . . . . . Slashing Weapon . | . . . . . . Piercing Weapon . | . . . . . . Special Melee Weapon . | . . . . . . Unidentified Prototypes 2 | . . . . 1 1 Parts Lost 16 | . . 3 . 2 11 Power 4 | . . 1 . 1 2 Propulsion 4 | . . . . . 4 Utility 3 | . . . . 1 2 Weapon 5 | . . 2 . . 3 Highest Loss Streak 10 | . . 2 . 2 10 To Critical Strikes . | . . . . . . Average Slot Usage (%) 95 | . 97 98 100 94 62 Engine 13 | . 14 13 14 10 8 Leg 26 | . 28 28 28 28 9 Device 1 | . . . . 10 9 Storage 11 | . 14 14 14 1 . Processor 13 | . 11 14 14 14 9 Energy Gun 3 | . 13 . . . 6 Energy Cannon 10 | . . 13 14 14 1 Ballistic Cannon 10 | . . 11 14 14 7 Launcher 2 | . 13 . . . . Naked Turns . | . . . . . . Heaviest Build 25 | 10 16 25 25 21 25 Greatest Support 20 | 20 20 20 20 20 20 Greatest Overweight (x) 3 | . . 1 1 1 3 Average Overweight (x) . | . . . 1 . 1 Largest Inventory Capacity 8 | 8 8 8 8 8 5 Average Capacity 7 | 7 8 8 8 5 5 Most Carried 8 | 5 8 8 8 8 3 Average Carried 6 | 2 6 7 7 4 2 Final Capacity 8 | 8 8 8 8 5 5 Final Carried 8 | 2 8 7 8 3 1 Class Distribution -------------------- 100% | Mutant Dominant Class ---------------- Mutant | -10/Materials Mutant | -10/Mines Mutant | -10/Exiles Mutant | -9/Mines Mutant | -8/Materials Resources | -11 -10 -10 -10 -9 -8 ----------- Run | Yrd Mat Min Exi Min Mat Matter Collected 1050 | 207 403 100 . 206 134 Remotely . | . . . . . . Salvage Created 737 | . 133 155 . 268 181 Parts 45 | . 17 7 . 6 15 Haulers Intercepted 2 | . 2 . . . . Recyclers Shooed 1 | . . . . 1 . Parts Field Recycled . | . . . . . . Retrieved Matter . | . . . . . . Parts Self-Destructed . | . . . . . . Prevented . | . . . . . . Kills | -11 -10 -10 -10 -9 -8 ------- Run | Yrd Mat Min Exi Min Mat Combat Hostiles Destroyed 19 | . 4 4 . 2 9 Guns 2 | . . . . . 2 Cannons 7 | . . 4 . 2 1 AOE 10 | . 4 . . . 6 Classes Destroyed 8 | . 4 1 . 2 1 Builder 2 | . 2 . . . . Hauler 2 | . 2 . . . . Recycler 2 | . . . . 2 . Swarmer 2 | . 2 . . . . Cutter 5 | . . . . . 5 Grunt 8 | . 2 2 . 1 3 Brawler 1 | . . . . 1 . Sentry 3 | . . 2 . . 1 Best Kill Streak 6 | . 5 2 . 2 6 Combat Bots Only 6 | . 2 2 . 1 6 Max Kills in Single Turn 2 | . 2 1 . 1 2 Gunslinging . | . . . . . . Exploded 2 | . 1 . . . 2 Melee . | . . . . . . Uniques/NPCs Destroyed . | . . . . . . Combat | -11 -10 -10 -10 -9 -8 -------- Run | Yrd Mat Min Exi Min Mat Hostile Shots Fired 124 | . 8 28 . 11 77 Missed 22 | . 6 4 . 1 11 Damage Taken 2097 | . 38 384 . 312 1363 Core 641 | . 10 48 . 30 553 Absorbed by Shields . | . . . . . . Ignored by Resistances 20 | . . . . . 20 Core Remaining (%) 82 | 100 . . . 64 . Volleys Fired 64 | . 12 12 . 16 24 Largest 2 | . 2 2 . 2 2 Hottest 136 | . 70 132 . 132 136 Shots Fired 112 | . 23 24 . 23 42 Gun 33 | . 12 3 . . 18 Cannon 61 | . . 18 . 23 20 Launcher 18 | . 11 3 . . 4 Special . | . . . . . . Kinetic 37 | . . 9 . 8 20 Thermal 57 | . 12 12 . 15 18 Explosive 18 | . 11 3 . . 4 Electromagnetic . | . . . . . . Robot Hit Streak 10 | . 6 10 . 7 3 Robot Miss Streak 6 | . 3 1 . 5 6 Penetration Max . | . . . . . . Secondary Targets . | . . . . . . Shots Hit Robots 46 | . 8 10 . 12 16 Core Hits 49 | . 14 11 . 4 20 Critical Kills 4 | . . 1 . 2 1 Critical Parts Destroyed 3 | . . . . 1 2 Critical Strikes 9 | . . 1 . 3 5 Burn 2 | . . . . . 2 Destroy 7 | . . 1 . 3 3 Melee Attacks . | . . . . . . Impact . | . . . . . . Slashing . | . . . . . . Piercing . | . . . . . . Sneak Attacks . | . . . . . . Combat Hostiles . | . . . . . . Follow-up Attacks . | . . . . . . Damage Inflicted 1866 | . 511 265 . 313 777 Guns 271 | . 42 7 . . 222 Cannons 705 | . . 196 . 313 196 Explosions 890 | . 469 62 . . 359 Melee . | . . . . . . Ramming . | . . . . . . Kinetic 295 | . . 64 . 63 168 Thermal 681 | . 42 139 . 250 250 Explosive 890 | . 469 62 . . 359 Electromagnetic . | . . . . . . Impact . | . . . . . . Slashing . | . . . . . . Piercing . | . . . . . . Highest Corruption 3 | . 1 1 1 3 . Average Corruption 1 | . 1 1 1 2 . Corruption Purged . | . . . . . . Corruption Blocked . | . . . . . . Effects 15 | . . 2 9 4 . Message Errors 3 | . . . 1 2 . Matter Fused 4 | . . . 3 1 . Heat Flow Errors 1 | . . . 1 . . Energy Discharges 2 | . . . 2 . . Data Loss (minor) 1 | . . . . 1 . Data Loss (major) 1 | . . 1 . . . Alerts 3 | . . 1 2 . . Overload Shots . | . . . . . . Overflow Damage 55 | . 29 . . . 26 Projectiles 23 | . . . . . 23 Explosions 32 | . 29 . . . 3 Melee . | . . . . . . Knockbacks . | . . . . . . Impact . | . . . . . . Kinetic . | . . . . . . Secondary . | . . . . . . Self-Inflicted Damage 184 | . 20 19 . . 145 Shots 7 | . 1 2 . . 4 Rammed . | . . . . . . Targets Rammed . | . . . . . . Kicked . | . . . . . . Crushed . | . . . . . . Highest Temperature 571 | . 33 248 101 532 571 Average Temperature 203 | . 12 114 53 320 267 Received Heat Transfer 573 | . 6 117 . . 450 Effects 20 | . . . . 11 9 Shutdowns 1 | . . . . 1 . Energy Bleed 1 | . . . . . 1 Interference 10 | . . . . 4 6 Matter Decay 2 | . . . . 1 1 Short Circuit 1 | . . . . 1 . Damage (minor) 1 | . . . . 1 . Damage (major) 2 | . . . . 2 . Damage (core) 2 | . . . . 1 1 Siege Activations . | . . . . . . Robots Corrupted . | . . . . . . Combat Hostiles . | . . . . . . Parts Fried . | . . . . . . Impact Corruptions . | . . . . . . Robots Melted . | . . . . . . Combat Hostiles . | . . . . . . Parts Melted . | . . . . . . Heat Transferred 1321 | . 100 259 . 370 592 Parts Sabotaged . | . . . . . . Parts Stolen . | . . . . . . Parts Stripped . | . . . . . . Power Chain Reactions . | . . . . . . Alert | -11 -10 -10 -10 -9 -8 ------- Run | Yrd Mat Min Exi Min Mat Peak Influence 181 | . 176 70 . 59 181 Initial 22 | . . 4 . . 22 Average 63 | . 81 59 . 54 58 Maximum Alert Level . | . . . . . . Low Security (%) 100 | 100 100 100 . 100 100 Level 1 . | . . . . . . Level 2 . | . . . . . . Level 3 . | . . . . . . Level 4 . | . . . . . . Level 5 . | . . . . . . High Security . | . . . . . . Max Security . | . . . . . . Squads Dispatched 5 | . 1 . . . 4 Investigation 2 | . 1 . . . 1 Extermination . | . . . . . . Reinforcement 3 | . . . . . 3 Assault . | . . . . . . Garrison . | . . . . . . Intercept . | . . . . . . Searches Triggered . | . . . . . . Construction Impeded . | . . . . . . Haulers Reinforced . | . . . . . . Active Scanning Responses . | . . . . . . Cargo Convoy Interrupts . | . . . . . . Stealth | -11 -10 -10 -10 -9 -8 --------- Run | Yrd Mat Min Exi Min Mat Distress Signals 1 | . 1 . . . . Communications Jammed . | . . . . . . Distress Signals . | . . . . . . Times Spotted 23 | . 7 4 . 1 11 Peak Tracking Total 8 | . 3 2 . 1 8 Tactical Retreats . | . . . . . . Traps | -11 -10 -10 -10 -9 -8 ------- Run | Yrd Mat Min Exi Min Mat Traps Triggered 2 | . 1 1 . . . Indirectly . | . . . . . . Trap Hack Attempts . | . . . . . . Triggered . | . . . . . . Disarmed . | . . . . . . Reprogrammed . | . . . . . . Reused . | . . . . . . Traps Extracted . | . . . . . . Installed . | . . . . . . Triggered . | . . . . . . Machines | -11 -10 -10 -10 -9 -8 ---------- Run | Yrd Mat Min Exi Min Mat Machines Disabled 3 | . . 3 . . . Max in Single Turn 2 | . . 2 . . . Machines Repaired . | . . . . . . Machines Dismantled . | . . . . . . Machines Sabotaged . | . . . . . . Overloaded Fab Kills . | . . . . . . Hacking | -11 -10 -10 -10 -9 -8 --------- Run | Yrd Mat Min Exi Min Mat Machines Accessed 8 | . 5 1 1 . 1 Terminals 5 | . 5 . . . . Fabricators . | . . . . . . Repair Stations 1 | . . . . . 1 Recycling Units . | . . . . . . Scanalyzers . | . . . . . . Garrison Access . | . . . . . . Total Hacks 18 | . 13 1 2 . 2 Successful 10 | . 6 1 2 . 1 Failed 8 | . 7 . . . 1 Catastrophic 2 | . 1 . . . 1 Database Lockouts . | . . . . . . Manual 3 | . . . 3 . . Terminals 13 | . 13 . . . . Fabricators . | . . . . . . Repair Stations 2 | . . . . . 2 Recycling Units . | . . . . . . Scanalyzers . | . . . . . . Garrison Access . | . . . . . . Terminal Hacks 9 | . 6 1 2 . . Record 3 | . 1 . 2 . . Open Door 1 | . . 1 . . . Terminal Index 1 | . 1 . . . . Locate Traps 1 | . 1 . . . . Reinforcement Status 1 | . 1 . . . . Hauler Manifests 1 | . 1 . . . . Zone Layout 1 | . 1 . . . . Fabricator Hacks . | . . . . . . Repair Station Hacks 1 | . . . . . 1 Refit 1 | . . . . . 1 Recycling Unit Hacks . | . . . . . . Scanalyzer . | . . . . . . Garrison Access Hacks . | . . . . . . Unauthorized Hacks . | . . . . . . Terminals . | . . . . . . Fabricators . | . . . . . . Repair Stations . | . . . . . . Recycling Units . | . . . . . . Scanalyzers . | . . . . . . Garrison Access . | . . . . . . Data Cores Recovered . | . . . . . . Used . | . . . . . . Hacking Detections 6 | . 5 . . . 1 Full Trace Events 3 | . 2 . . . 1 Feedback Events . | . . . . . . Feedback Blocked . | . . . . . . Robot Schematics Acquired . | . . . . . . Robots Built . | . . . . . . Authchips . | . . . . . . Time . | . . . . . . Total Robot Build Rating . | . . . . . . Part Schematics Acquired . | . . . . . . Parts Built . | . . . . . . Authchips . | . . . . . . Time . | . . . . . . Total Part Build Rating . | . . . . . . Parts Repaired . | . . . . . . Time . | . . . . . . Parts Recycled . | . . . . . . Recycled Matter . | . . . . . . Retrieved Matter . | . . . . . . Retrieved Components . | . . . . . . Parts Scanalyzed . | . . . . . . Part Schematics Acquired . | . . . . . . Parts Damaged . | . . . . . . Bothacking | -11 -10 -10 -10 -9 -8 ------------ Run | Yrd Mat Min Exi Min Mat Used RIF Installer . | . . . . . . Robots Hacked . | . . . . . . Non-combat . | . . . . . . Combat . | . . . . . . Robot Hacks Applied . | . . . . . . Relay Couplers Released . | . . . . . . Fabnet Peak Effective % . | . . . . . . Robots Rewired . | . . . . . . Allies Hacked . | . . . . . . Hacks Repelled . | . . . . . . Allies | -11 -10 -10 -10 -9 -8 -------- Run | Yrd Mat Min Exi Min Mat Total Allies . | . . . . . . Largest Group . | . . . . . . Highest-Rated Group . | . . . . . . Highest-Rated Ally . | . . . . . . Total Orders . | . . . . . . Ally Attacks . | . . . . . . Total Damage . | . . . . . . Kills . | . . . . . . Allies Corrupted . | . . . . . . Allies Melted . | . . . . . . Intel | -11 -10 -10 -10 -9 -8 ------- Run | Yrd Mat Min Exi Min Mat Robot Analysis Total . | . . . . . . Derelict Logs Recovered 2 | . . 1 . 1 . Drone Launches 2 | . . . . 1 1 Drone Recoveries 1 | . . . . . 1 Exploration | -11 -10 -10 -10 -9 -8 ------------- Run | Yrd Mat Min Exi Min Mat Turns Passed 2920 | 62 557 690 1168 220 223 Spaces Moved 1619 | 47 425 383 611 86 67 Core 18 | 11 . . . . 7 Treads . | . . . . . . Legs 1594 | 36 425 383 611 86 53 Wheels . | . . . . . . Hover 7 | . . . . . 7 Flight . | . . . . . . Fastest Speed 50 | 50 120 120 190 120 50 Average Speed 164 | 103 120 167 190 187 206 Slowest Speed 260 | 120 120 190 190 190 260 Overloaded Moves . | . . . . . . Propulsion Burnouts . | . . . . . . Robots Hopped . | . . . . . . Cave-ins Triggered . | . . . . . . Exploration Rate (%) 42 | 4 64 70 92 18 5 Regions Visited 5 Branch Regions 3 Pre-discovered Areas 2 | . . 1 1 . . Known Exits Taken . | . . . . . . Unknown Exits Taken 5 | 1 1 1 1 1 . Scrap Searched 2 | . . 1 . 1 . Spaces Dug . | . . . . . . Terrain Destroyed 112 | . 50 31 . 9 22 Melee . | . . . . . . Projectile 25 | . . 6 . 9 10 AOE 87 | . 50 25 . . 12 Terrain Rammed . | . . . . . . Walls Destroyed . | . . . . . . Machines Disabled . | . . . . . . Actions | -11 -10 -10 -10 -9 -8 --------- Run | Yrd Mat Min Exi Min Mat Total 1766 | 60 447 408 620 122 109 Wait 27 | . . 5 4 13 5 Move 1614 | 46 424 382 610 85 67 Hop . | . . . . . . Pick Up 28 | 8 7 3 3 2 5 Fast Attach . | . . . . . . Attach 19 | 6 1 3 . 2 7 Detach . | . . . . . . Swap 8 | . 3 2 . 2 1 Drop 5 | . . 1 2 2 . Fire 64 | . 12 12 . 16 24 Melee . | . . . . . . Ram . | . . . . . . Kick . | . . . . . . Crush . | . . . . . . Escape Stasis . | . . . . . . Rewire 1 | . . . 1 . . Trap . | . . . . . . Miscellaneous . | . . . . . . Route ------- -11/Scrapyard -10/Materials (discovered 4 exits: [*Mat x2] / *Min x2) -10/Mines -10/Exiles -9/Mines (discovered 2 exits: *Mat x2) -8/Materials History --------- Turn | Location | Event 8 | -11/Scrapyard | Discovered new exit (range 15) 63 | -11/Scrapyard | Entered Materials 158 | -10/Materials | Discovered new exit (range 11) 270 | -10/Materials | Discovered new exit (range 16) 288 | -10/Materials | Discovered new exit (range 10) 314 | -10/Materials | Build established: Mutant 447 | -10/Materials | Discovered new exit (range 7) 620 | -10/Materials | Entered Mines 636 | -10/Mines | Met a Derelict bent on vengeance 725 | -10/Mines | A weapon hastily lodged in a ceiling crevice suddenly fell to the ground 752 | -10/Mines | Met a Derelict who couldn't figure out how to use a Trap Extractor 1159 | -10/Mines | Assembled infested the area 1164 | -10/Mines | Assisted by a Guerilla fighting off Assembled 1164 | -10/Mines | Learned location of Zion (-7) 1297 | -10/Mines | Deemed a non-threat by the Exiles lab entrance 1299 | -10/Mines | Discovered new exit (range 5) 1310 | -10/Mines | Entered Exiles 1382 | -10/Exiles | Met 8R-AWN 1411 | -10/Exiles | Met EX-HEX 1509 | -10/Exiles | Met EX-DEC 1620 | -10/Exiles | Discovered new exit (range 12) 1773 | -10/Exiles | Visited The Gauntlet 2128 | -10/Exiles | Met EX-BIN 2170 | -10/Exiles | Aligned with FarCom system 2172 | -10/Exiles | Given EX-Vault access code 2278 | -10/Exiles | Opened EX-Vault 2291 | -10/Exiles | Found Prototype Device 2332 | -10/Exiles | Warned to stay clear of 0b10 Research branches 2478 | -10/Exiles | Left Exiles lab with Supersonic Drone Bay 2478 | -10/Exiles | Entered Mines 2539 | -9/Mines | Identified Supersonic Drone Bay 2576 | -9/Mines | Discovered new exit (range 12) 2593 | -9/Mines | Learned Materials stockpile data 2648 | -9/Mines | Discovered new exit (range 9) 2698 | -9/Mines | Entered Materials 2698 | -8/Materials | Accompanied by 1 ally 2698 | -8/Materials | Evolved 4 slots: Power x1, Propulsion x2, Utility x1 2903 | -8/Materials | Core integrity fell below 50% 2912 | -8/Materials | Core integrity fell below 20% 2921 | -8/Materials | Destroyed by H-61 Shepherd with Heavy Assault Cannon Last Messages --------------- 02906_ Surge Thruster destroyed. 02906_ Reflective Plating destroyed. 02907_ G-47 Trooper destroyed. 02907_ C-17 Slicer destroyed. 02908_ Acquired 9 matter. 02910_ C-17 Slicer destroyed. 02913_ G-47 Trooper destroyed. 02913_ Lgt. Assault Rifle destroyed. 02913_ Destroyed Lgt. Assault Rifle. 02915_ Grenade Launcher destroyed. 02915_ Knocked back. 02916_ Acquired 7 matter. 02916_ U-05 Engineer lays Concrete. 02916_ Acquired Unknown Device. 02917_ U-05 Engineer lays Concrete. 02917_ Identified Reaction Control System. 02919_ U-05 Engineer builds a Wall. 02920_ Acquired Lgt. EM Pulse Cannon. 02921_ Acquired 47 matter. 02921_ Supersonic Drone Bay destroyed. Map ----- +----------------------------------------------------+ | ???????????????????????????? | | ???????????????????????????? | | ???????????????????????????? | | ???????????????????????????? | | ???????????????????????????? | | ???????????????????????????? | | ????###############????????? | | ????# # #????????? | | ????# = # #????????? | | ????# # #????????? | | ????# """ """ + #????????? | | ????# """ """ # #????????? | | ????# """ """ # #????????? | | ????# # #????????? | | ????# ! #????????? | | ????########## ????????? | | ?????????????# ###???#### | | ?????????????# ;#####;%# | | ?????????????# # """ # | | ?????????????# ""R" ; | | ??????????????# "" " ; | | ??????????????# ; | | ??????????????# = ; | | ??????????????# *== c # | | ?????????????## * ] ] # | | ?????????????## * = ]]@ # | | ?????????????##u = ]] %# | | ??????????????# # ### | | ?????????????# # # ##?? | | ???????????? ######??? | | ?????????? T #???????? | | ????????? H #???????? | | ????????# "### #???????? | | ????????# ???#######???????? | | ???????????????????????????? | | ???????????????????????????? | | ???????????????????????????? | | ???????????????????????????? | | ???????????????????????????? | | ???????????????????????????? | | ???????????????????????????? | | ???????????????????????????? | | ???????????????????????????? | | ???????????????????????????? | | ???????????????????????????? | | ???????????????????????????? | | ???????????????????????????? | | ???????????????????????????? | | ???????????????????????????? | | ???????????????????????????? | +----------------------------------------------------+ Best States ------------- Heat Dissipation 31 Energy Generation 16 Energy Capacity 250 Matter Stores 300 Matter Capacity 500 Sight Range 16 Terrain Scan Density 10 Armor Coverage 150 Resistance: TH 10 Evasion (%) 55 Item Schematics ----------------- None Robot Schematics ------------------ None Fabricated ------------ Nothing Alien Tech Used ----------------- None Achievements -------------- Tourist Challenges ------------ None Game ------ Seed FocalBiomechanicalFirepult Manual? 0 Play Time 00:23:08 Cumulative 5.6 hours Start 2024.05.03 @ 14:29:17 End 2024.05.03 @ 14:50:04 Sessions 1 Manual Loads 0 Difficulty Rogue Special Mode None Game No. 14 Rogue 14 Adventurer 0 Explorer 0 Win Type - Total 0 Types 0/0/0/0/0/0/0/0/0 Lore% 2 Gallery% 14 Achievement% 9 Wizard Run 0 Options --------- Layout 1 ASCII 0 Keyboard 1 Movement Numpad Keybinds 0 Fullscreen 1 Font 24/Smallcaps Map View 50x35 Zoom Use 0% Tactical HUD 1 Map Filters NONE Filters NONE Steam 1 RUN: ab2b63a5-e7b9-4e13-bbda-ce6d37709de8